bitfinex/quotes_ETHUSD_20240614
["timestamp","ask_amount","ask_price","bid_price","bid_amount"]
[1718403114345,0.04759662,3480.4,3479.6,4.15890545]
[1718403114871,0.04751185,3480.3,3479.6,1.28503545]
[1718403115071,2.87307,3480.6,3479.7,2.87378]
[1718403115273,0.04750721,3480.2,3479.7,2.87378]
[1718403115640,2.87307,3480.6,3479.7,2.87378]
[1718403115942,0.04750256,3480.1,3479.7,3.86446355]
[1718403116143,2.87307,3480.6,3479.7,3.86446355]
[1718403116342,0.04749792,3480.0,3479.7,3.86446355]
[1718403116643,2.87307,3480.6,3479.7,3.86446355]
[1718403117170,0.04753849,3480.5,3479.7,3.86446355]
[1718403118937,3.47359645,3480.7,3479.7,3.86446355]
[1718403119173,0.04752641,3480.4,3479.7,3.86446355]
[1718403119379,1.54497723,3480.6,3479.7,3.86446355]
[1718403119687,3.47359645,3480.7,3479.7,3.86446355]
[1718403119688,0.04751929,3480.3,3479.7,3.86446355]
[1718403119844,1.4974605,3480.6,3479.7,3.86446355]
[1718403120178,0.04751713,3480.2,3479.8,2.8737]
[1718403120383,1.09731139,3480.7,3480.2,2.87337]
[1718403120678,1.09731139,3481.2,3480.6,2.87301]
[1718403120836,2.55509521,3481.2,3480.6,2.87301]
[1718403121041,0.60059645,3481.3,3480.7,2.87296]
[1718403121243,0.60059645,3481.4,3480.9,2.87281]
[1718403121477,1.49707263,3481.3,3481.0,2.87267]
[1718403121778,1.19737241,3481.7,3481.0,2.87267]
[1718403121779,0.60059645,3481.5,3481.0,2.87267]
[1718403122130,2.09756851,3481.6,3481.3,2.87247]
[1718403122414,0.60059645,3481.7,3481.5,2.87232]
[1718403122605,0.89835556,3481.9,3481.6,2.87222]
[1718403122606,0.60059645,3481.9,3481.6,2.87222]
[1718403122766,0.60059645,3482.0,3481.7,2.87214]
[1718403123299,2.57672254,3482.3,3481.8,2.87207]
[1718403123300,0.046392,3481.9,3481.8,2.87207]
[1718403123491,0.60059645,3482.3,3481.9,2.87193]
[1718403123685,0.60059645,3482.4,3481.9,2.87193]
[1718403124301,1.49651696,3482.3,3482.0,5.74378]
[1718403124503,0.60059645,3482.4,3482.1,2.87181]
[1718403124801,0.60059645,3482.7,3482.3,2.87166]
[1718403125000,1.49638553,3482.6,3482.3,2.87166]
[1718403125192,0.60059645,3482.7,3482.3,2.87166]
[1718403125368,1.49636539,3482.6,3482.3,5.74325]
[1718403125564,0.60059645,3482.7,3482.6,2.87141]
[1718403125867,0.60059645,3482.9,3482.5,2.87149]
[1718403126178,1.19737241,3483.2,3482.6,2.87141]
[1718403126179,0.60059645,3483.0,3482.6,2.87141]
[1718403126374,0.60059645,3483.1,3482.6,2.87141]
[1718403126605,0.60059645,3483.1,3482.1,6.9062]
[1718403126606,1.4962755,3483.0,3482.1,6.9062]
[1718403126767,0.60059645,3483.0,3482.4,2.87155]
[1718403126968,1.49633651,3482.9,3482.5,2.87148]
[1718403127175,0.60059645,3483.1,3482.5,2.87148]
[1718403128116,1.49631039,3483.0,3482.5,2.87148]
[1718403128290,0.60059645,3483.1,3482.3,2.87166]
[1718403128487,2.09695037,3483.0,3482.3,2.87166]
[1718403128696,2.87117,3482.9,3481.8,2.87202]
[1718403128877,2.87117,3482.9,3481.6,9.77841]
[1718403128878,0.60059645,3482.5,3481.7,2.87215]
[1718403129273,0.60059645,3482.5,3481.8,2.87206]
[1718403129885,1.49661519,3482.4,3481.8,2.87206]
[1718403130423,1.49661519,3482.4,3481.4,5.87238]
[1718403130424,0.60059645,3482.4,3481.4,5.87238]
[1718403130752,0.60059645,3482.4,3480.8,1.617]
[1718403130753,0.60059645,3482.1,3480.8,1.617]
[1718403131022,2.0972698,3482.0,3480.8,3.05044514]
[1718403131222,0.89835556,3482.1,3480.8,3.05044514]
[1718403131223,2.0972698,3481.9,3480.9,7.21814451]
[1718403131396,1.49667335,3481.8,3481.1,2.87257]
[1718403131603,1.49667335,3481.8,3480.9,2.87275]
[1718403131921,1.49667335,3481.8,3480.5,10.27602]
[1718403131922,2.0972698,3481.7,3480.5,10.27602]
[1718403132132,2.0972698,3481.6,3480.9,2.87281]
[1718403132290,0.60059645,3481.7,3480.9,2.87281]
[1718403132489,2.87228,3481.6,3480.6,2.87306]
[1718403132720,0.60059645,3481.6,3480.7,2.87297]
[1718403132921,2.09759283,3481.6,3480.7,2.87297]
[1718403133126,1.49699638,3481.5,3480.8,3.0]
[1718403133347,0.60059645,3481.6,3480.8,3.0]
[1718403133693,2.09758104,3481.6,3480.8,3.0]
[1718403134222,0.60059645,3481.6,3480.8,3.0]
[1718403134923,2.0975699,3481.6,3480.8,3.0]
[1718403135109,2.0975699,3481.6,3480.8,5.87289]
[1718403135310,0.60059645,3481.6,3480.8,5.87289]
[1718403135489,2.09756673,3481.6,3480.8,5.87289]
[1718403135995,0.60059645,3481.6,3480.8,5.87289]
[1718403136196,2.09756475,3481.7,3480.8,5.87289]
[1718403136402,1.4969683,3481.6,3480.8,5.87289]
[1718403136625,0.60059645,3481.6,3480.8,5.87289]
[1718403137460,1.49695013,3481.6,3480.8,5.87289]
[1718403137655,0.60059645,3481.7,3480.8,5.87289]
[1718403138264,0.04664902,3481.6,3480.8,5.87289]
[1718403138470,0.04664902,3481.6,3481.4,2.87233]
[1718403138973,0.04664902,3481.6,3481.4,2.87239]
[1718403139265,2.09733943,3482.1,3481.2,2.87254]
[1718403139468,0.60059645,3482.2,3481.4,2.87232]
[1718403139772,0.04651148,3482.0,3480.9,1.43344514]
[1718403139933,0.60059645,3482.0,3481.1,2.87265]
[1718403140274,1.54349347,3481.9,3481.1,2.87265]
[1718403140450,0.64725598,3481.9,3481.1,2.87265]
[1718403140650,2.53921053,3481.8,3481.0,2.87273]
[1718403140870,1.08902305,3481.8,3481.0,5.74546]
[1718403141043,1.08902305,3481.8,3481.0,2.87273]
[1718403141232,1.08902305,3481.8,3481.1,2.87265]
[1718403141565,1.98530858,3481.8,3481.1,2.87265]
[1718403142541,0.4884266,3481.8,3481.0,2.87266]
[1718403142741,1.98530319,3481.8,3481.0,2.87266]
[1718403142954,1.08902305,3481.8,3480.9,2.8728]
[1718403143152,1.49690035,3481.7,3480.9,2.8728]
[1718403143454,0.0467051,3481.6,3480.9,2.8728]
[1718403143963,0.0467051,3481.6,3481.0,2.92099661]
[1718403144464,2.53923146,3481.8,3481.0,2.92099661]
[1718403144678,0.04669296,3481.5,3481.1,2.87265]
[1718403144886,0.60059645,3481.8,3481.1,2.87265]
[1718403145083,0.04667592,3481.4,3481.2,2.87256]
[1718403145383,0.60059645,3481.9,3481.2,2.87256]
[1718403145594,0.04667128,3481.3,3481.2,2.87256]
[1718403145746,2.09743108,3481.8,3481.2,2.87256]
[1718403145947,0.04667128,3481.3,3481.2,2.87256]
[1718403146150,0.60059645,3482.0,3481.4,2.87237]
[1718403146378,2.09733126,3482.1,3481.4,2.87237]
[1718403146582,1.49671605,3482.0,3481.3,2.87248]
[1718403147291,1.49671605,3482.0,3481.0,1.617]
[1718403147587,1.49671605,3482.0,3481.4,2.87235]
[1718403147772,0.60059645,3482.0,3481.4,2.87235]
[1718403147950,0.60059645,3482.0,3481.3,2.87246]
[1718403148145,0.60059645,3481.9,3481.3,2.87246]
[1718403148684,2.09739701,3481.9,3481.1,2.87257]
[1718403148854,1.18734671,3481.9,3481.2,2.87255]
[1718403149368,1.49683191,3481.8,3481.2,2.87255]
[1718403149981,1.18734671,3481.9,3481.2,2.87255]
[1718403149982,0.58675026,3481.9,3481.2,2.87255]
[1718403150281,1.18734671,3481.9,3481.2,2.87255]
[1718403151085,1.49682333,3481.8,3481.1,2.87265]
[1718403151380,1.49685453,3481.7,3481.1,2.87265]
[1718403151566,1.49685453,3481.7,3480.9,2.8728]
[1718403151771,0.60059645,3481.7,3481.0,3.0]
[1718403152677,1.49689639,3481.6,3480.8,2.87288]
[1718403152992,1.49689639,3481.6,3480.9,3.0]
[1718403152993,0.04657739,3481.6,3480.9,3.0]
[1718403154378,0.64717384,3481.6,3480.9,3.0]
[1718403156383,1.49691759,3481.5,3480.9,3.0]
[1718403156597,1.49691759,3481.5,3480.4,2.8732]
[1718403156598,0.65599626,3481.5,3480.4,2.8732]
[1718403156786,3.47308645,3481.3,3480.3,2.87329]
[1718403156976,2.09764069,3481.2,3480.2,2.87337]
[1718403157175,3.77084556,3481.3,3480.0,2.87355]
[1718403157176,0.60059645,3480.9,3480.0,2.87355]
[1718403157399,2.09783164,3480.8,3479.8,2.87371]
[1718403157597,1.49723519,3480.7,3479.9,2.87362]
[1718403157797,3.51997568,3480.8,3479.9,2.87362]
[1718403157999,0.04622813,3480.6,3479.9,2.87362]
[1718403158175,0.64684559,3480.7,3479.9,2.87362]
[1718403158506,0.04624978,3480.5,3479.9,2.87362]
[1718403158709,0.0462569,3480.6,3479.9,2.87362]
[1718403158867,0.04606143,3480.4,3479.9,2.87362]
[1718403159070,0.60059645,3480.7,3479.9,2.87362]
[1718403159274,0.04604438,3480.3,3479.9,2.87362]
[1718403159567,1.49731692,3480.6,3480.0,2.87355]
[1718403159772,0.89835556,3480.8,3480.1,5.74696]
[1718403159773,0.04603974,3480.2,3480.1,5.74696]
[1718403160204,0.04603974,3480.2,3480.0,2.87355]
[1718403160205,0.60059645,3481.0,3480.3,2.87326]
[1718403160509,0.89835556,3481.1,3480.3,2.87326]
[1718403160510,2.14253576,3480.9,3480.3,2.87326]
[1718403160685,0.64537212,3480.9,3480.3,2.87326]
[1718403161088,1.49719162,3480.8,3480.3,2.87326]
[1718403161394,0.64486969,3480.8,3480.3,2.87326]
[1718403161585,0.04427324,3480.8,3480.3,3.735288]
[1718403161987,0.64486969,3480.8,3480.3,3.735288]
[1718403162577,1.49719466,3480.7,3480.3,3.735288]
[1718403162777,0.64486969,3480.8,3480.3,3.735288]
[1718403162973,0.04425156,3480.6,3480.3,3.735288]
[1718403163180,0.60059645,3480.8,3480.3,3.735288]
[1718403163374,0.04424692,3480.5,3480.4,5.80392058]
[1718403163585,0.60059645,3480.8,3480.5,2.87314]
[1718403165517,0.60059645,3480.9,3480.6,2.87306]
[1718403165704,1.49713215,3480.8,3480.6,2.87306]
[1718403165902,0.60059645,3480.9,3480.6,2.87306]
[1718403166214,1.49712653,3480.8,3480.6,2.87306]
[1718403166418,0.60059645,3480.9,3480.6,2.87306]
[1718403167123,1.49712492,3480.8,3480.6,2.87306]
[1718403167328,0.60059645,3480.9,3480.6,2.87306]
[1718403167503,1.49713035,3480.8,3480.6,2.87306]
[1718403167817,0.60059645,3480.9,3480.6,2.87306]
[1718403167981,0.0444614,3480.7,3480.6,2.87306]
[1718403168188,1.50138917,3481.4,3480.6,2.87306]
[1718403168189,0.60059645,3481.3,3481.2,2.87257]
[1718403168415,0.60059645,3481.5,3481.2,2.87257]
[1718403168625,0.89835556,3481.6,3481.1,2.87263]
[1718403168626,0.04443517,3481.3,3481.1,2.87263]
[1718403168828,0.04443517,3481.3,3480.8,2.87289]
[1718403168829,1.49696491,3481.2,3480.8,2.87289]
[1718403168990,0.6450245,3481.2,3480.8,2.87289]
[1718403169802,0.04442805,3481.2,3480.8,2.87289]
[1718403170033,0.04442805,3481.2,3480.9,2.87281]
[1718403170231,0.60059645,3481.3,3480.9,2.87281]
[1718403170432,0.04443979,3481.1,3480.9,2.87281]
[1718403170734,0.04442126,3481.0,3480.9,3.747399]
[1718403170915,0.60059645,3481.5,3481.0,9.66563]
[1718403171222,0.60059645,3481.9,3481.6,2.87224]
[1718403171434,0.60059645,3482.0,3481.7,2.87209]
[1718403171585,1.4966123,3481.9,3481.6,2.8722]
[1718403171789,0.60059645,3482.0,3481.7,2.87215]
[1718403171985,0.60059645,3482.0,3481.8,2.87207]
[1718403172190,1.49660243,3481.9,3481.8,2.87207]
[1718403172499,0.60059645,3482.0,3481.8,2.87207]
[1718403173326,1.49657169,3481.9,3481.8,2.87207]
[1718403173628,0.60059645,3482.0,3481.8,2.87207]
[1718403173800,0.60059645,3482.0,3481.9,5.74398]
[1718403174002,0.60059645,3482.2,3482.1,5.74366]
[1718403174238,1.49647132,3482.2,3482.1,2.87183]
[1718403174388,0.60059645,3482.3,3482.2,2.87174]
[1718403174586,2.09701027,3482.3,3482.2,2.87174]
[1718403174833,2.09701027,3482.3,3482.2,5.74348]
[1718403175000,1.49641382,3482.3,3482.2,5.74348]
[1718403175203,0.60059645,3482.4,3482.3,2.87166]
[1718403175405,2.0969913,3482.4,3482.3,2.87166]
[1718403175611,2.0969913,3482.4,3481.6,1.617]
[1718403175612,2.0969913,3482.4,3481.9,2.87199]
[1718403175930,0.60059645,3482.2,3482.1,2.87183]
[1718403176106,2.0969913,3482.2,3482.1,2.87183]
[1718403176302,1.49639485,3482.2,3482.1,2.87183]
[1718403176503,0.60059645,3482.3,3482.2,2.87174]
[1718403176696,2.09702279,3482.3,3482.2,2.87174]
[1718403176892,2.09702279,3482.3,3482.2,5.74348]
[1718403177092,1.49642634,3482.3,3482.2,5.74348]
[1718403177727,0.60059645,3482.4,3482.3,2.87166]
[1718403177928,2.09699954,3482.4,3482.3,2.87166]
[1718403179201,1.49640309,3482.4,3482.3,2.87166]
[1718403179599,2.09699954,3482.4,3482.3,2.87166]
[1718403179795,1.49640309,3482.4,3482.3,2.87166]
[1718403180007,2.09699954,3482.4,3482.3,2.87166]
[1718403180336,1.49640309,3482.4,3482.3,2.87166]
[1718403180642,2.09699954,3482.4,3482.3,2.87166]
[1718403180798,1.49640309,3482.4,3482.3,2.87166]
[1718403181215,0.60059645,3482.5,3482.3,2.87166]
[1718403181416,1.49642459,3482.4,3482.3,2.87166]
[1718403182206,0.60059645,3482.5,3482.3,2.87166]
[1718403182658,0.60059645,3482.6,3482.4,2.87158]
[1718403182861,0.60059645,3482.8,3482.4,3.445894]
[1718403183152,0.60059645,3482.9,3482.5,2.87144]
[1718403183318,0.0442412,3482.7,3482.6,2.87138]
[1718403183521,0.60059645,3482.9,3482.3,2.87166]
[1718403183715,0.0442412,3482.7,3482.4,2.87156]
[1718403183938,0.60059645,3482.8,3482.3,2.87166]
[1718403184140,0.04423154,3482.6,3482.0,3.0]
[1718403184344,2.09706722,3482.5,3481.9,2.87192]
[1718403184546,2.09706722,3482.5,3481.6,3.0]
[1718403184547,0.60059645,3482.3,3481.6,5.87216]
[1718403185064,0.04293923,3482.2,3481.6,2.87216]
[1718403185420,0.04293923,3482.2,3481.7,2.87214]
[1718403185748,0.04293923,3482.2,3481.4,10.05906]
[1718403185749,2.09724148,3482.1,3480.9,8.061279]
[1718403185961,1.49664503,3482.0,3481.3,2.87244]
[1718403186120,2.09724148,3481.9,3481.3,2.87244]
[1718403186320,2.09735187,3481.8,3481.3,2.87244]
[1718403186520,0.64299538,3481.8,3481.1,2.87265]
[1718403186826,0.60059645,3481.6,3481.1,2.87265]
[1718403187011,0.60059645,3481.6,3481.0,2.87272]
[1718403187216,1.53931136,3481.5,3481.0,2.87272]
[1718403187443,0.04241025,3481.5,3481.2,2.87257]
[1718403187750,0.04241025,3481.5,3481.3,2.87248]
[1718403187920,1.49679546,3481.7,3481.3,2.87248]
[1718403188120,0.04228712,3481.4,3481.3,2.87248]
[1718403188425,0.60059645,3481.8,3481.3,2.87248]
[1718403188426,1.49679415,3481.7,3481.3,2.87248]
[1718403188630,0.04228712,3481.4,3481.3,2.87248]
[1718403188837,1.49680663,3481.7,3481.3,2.87248]
[1718403189061,0.04228712,3481.4,3481.3,2.87248]
[1718403189268,1.49680203,3481.7,3481.3,2.87248]
[1718403189573,0.60059645,3482.1,3481.5,2.87226]
[1718403189714,0.04231151,3481.6,3481.5,2.87226]
[1718403189915,0.89835556,3482.2,3481.6,2.87222]
[1718403189916,2.09725182,3482.0,3481.6,2.87222]
[1718403190112,0.60059645,3482.2,3481.9,2.87199]
[1718403190353,0.60059645,3482.3,3481.7,2.87209]
[1718403190526,1.49655778,3482.2,3481.7,2.87214]
[1718403190847,0.60059645,3482.3,3481.7,2.87214]
[1718403191061,2.09718211,3482.2,3481.7,2.87214]
[1718403191249,0.60059645,3482.2,3481.7,2.87214]
[1718403191451,0.60059645,3482.2,3481.8,2.87207]
[1718403191661,0.60059645,3482.2,3481.7,2.87214]
[1718403192122,0.60059645,3482.2,3481.8,2.87207]
[1718403192314,0.89835556,3482.4,3481.8,2.87207]
[1718403192315,0.60059645,3482.3,3481.8,2.87207]
[1718403192529,0.89835556,3482.4,3481.8,2.87207]
[1718403192530,2.09719408,3482.2,3481.8,2.87207]
[1718403192729,0.60059645,3482.2,3481.8,2.87207]
[1718403193691,1.49663101,3482.1,3481.7,2.87213]
[1718403193895,0.60059645,3482.2,3481.7,2.87213]
[1718403194099,1.49664608,3482.1,3481.6,2.87222]
[1718403194266,0.60059645,3482.2,3481.6,2.87222]
[1718403194603,1.49664804,3482.1,3481.6,2.87222]
[1718403194897,0.89835556,3482.3,3481.4,10.3032]
[1718403194898,0.60059645,3482.3,3481.4,7.4308]
[1718403195052,0.60059645,3482.3,3482.0,2.87189]
[1718403195273,0.60059645,3482.4,3481.9,2.87197]
[1718403195747,1.49653872,3482.3,3481.9,2.87197]
[1718403195947,0.60059645,3482.4,3481.9,2.87199]
[1718403196187,0.60059645,3482.4,3482.1,2.87181]
[1718403196362,0.60059645,3482.6,3482.1,2.87181]
[1718403196894,0.60059645,3482.7,3482.1,2.87181]
[1718403197192,1.49643419,3482.6,3482.1,2.87181]
[1718403197493,0.60059645,3482.7,3482.1,2.87181]
[1718403197694,1.49642645,3482.6,3482.1,2.87181]
[1718403197875,0.60059645,3482.7,3482.1,2.87181]
[1718403198064,1.53896746,3482.6,3482.2,2.87173]
[1718403198258,0.04253135,3482.6,3482.2,2.87173]
[1718403199291,0.04253135,3482.6,3482.3,2.87164]
[1718403199991,0.60059645,3482.7,3482.3,2.87164]
[1718403200161,0.04278412,3482.5,3481.5,3.0]
[1718403200496,2.13974729,3482.4,3481.5,3.0]
[1718403200665,1.49658723,3482.3,3481.5,3.0]
[1718403200855,0.04272781,3482.2,3481.8,2.87207]
[1718403201061,1.49660085,3482.3,3481.8,2.87207]
[1718403201256,0.04273029,3482.2,3481.8,2.87207]
[1718403201461,0.60059645,3482.3,3481.7,2.87213]
[1718403201681,0.04266379,3482.2,3481.8,3.0]
[1718403201882,0.60059645,3482.3,3481.6,2.87222]
[1718403202084,2.09724967,3482.2,3481.6,2.87222]
[1718403202288,1.49666522,3482.1,3481.6,2.87222]
[1718403202476,0.04265204,3482.0,3481.6,2.87222]
[1718403202670,0.60059645,3482.2,3481.6,2.87222]
[1718403202867,1.53933532,3482.1,3481.6,2.87222]
[1718403203067,0.04265915,3482.1,3481.5,2.8723]
[1718403203407,0.6432556,3482.1,3481.6,2.87223]
[1718403203565,0.04265915,3482.1,3481.6,2.87223]
[1718403203903,0.6432556,3482.1,3481.6,2.87223]
[1718403204062,0.6432556,3482.1,3481.5,2.8723]
[1718403204256,1.49668081,3482.0,3481.5,2.8723]
[1718403204465,0.60059645,3481.8,3480.7,4.48997]
[1718403204818,0.60059645,3481.8,3479.9,12.375374]
[1718403204819,0.60059645,3481.4,3480.6,2.87306]
[1718403204999,0.60059645,3481.2,3480.6,2.87306]
[1718403205294,1.49677534,3481.3,3480.6,1.318933]
[1718403205295,2.1396947,3481.1,3480.6,1.318933]
[1718403205492,0.64291936,3481.1,3480.6,1.318933]
[1718403206607,0.64291936,3481.1,3480.3,2.87323]
[1718403206903,0.60059645,3480.9,3480.4,3.0]
[1718403207103,0.60059645,3480.9,3480.3,3.0]
[1718403207321,0.04230899,3480.8,3480.3,3.0]
[1718403207808,2.09787039,3480.7,3480.1,2.87346]
[1718403207969,0.04230899,3480.8,3480.2,5.87339]
[1718403208169,0.0420401,3480.6,3480.2,5.87339]
[1718403208381,0.60059645,3481.0,3480.2,5.87339]
[1718403208598,0.04204049,3480.5,3480.2,7.5498504]
[1718403208797,1.49713938,3480.9,3480.3,2.87324]
[1718403208998,0.60059645,3481.0,3480.6,2.87305]
[1718403209225,0.04205682,3480.8,3480.7,2.89783554]
[1718403209402,0.60059645,3481.1,3480.7,2.89783554]
[1718403209600,0.04167545,3480.8,3480.7,2.87298]
[1718403209786,0.60059645,3481.1,3480.7,2.87298]
[1718403209991,0.04167182,3480.8,3480.7,2.87298]
[1718403210322,0.0416782,3480.8,3480.7,2.87298]
[1718403210520,0.60059645,3481.1,3480.7,2.87298]
[1718403210712,0.04028732,3480.8,3480.6,2.87305]
[1718403210912,0.60059645,3481.0,3480.7,2.93042417]
[1718403211110,0.60059645,3481.1,3480.7,2.87297]
[1718403211311,0.0402994,3480.9,3480.7,2.87297]
[1718403211519,0.60059645,3481.1,3480.8,2.8729]
[1718403211695,0.60059645,3481.2,3480.8,2.8729]
[1718403211892,0.60059645,3481.3,3480.9,2.87279]
[1718403212094,0.60059645,3481.3,3480.8,2.8729]
[1718403212095,0.60059645,3481.3,3481.0,1.43344514]
[1718403212406,3.12327872,3481.7,3481.4,2.8724]
[1718403212407,0.60059645,3481.7,3481.4,2.8724]
[1718403212601,0.60059645,3481.8,3481.4,2.8724]
[1718403212827,1.4967601,3481.7,3481.4,2.8724]
[1718403213017,0.04050249,3481.7,3481.4,2.8724]
[1718403213215,0.64109894,3481.7,3481.4,2.8724]
[1718403213405,0.60059645,3481.8,3481.4,2.8724]
[1718403213728,2.09734998,3481.7,3481.3,2.87247]
[1718403213925,0.64119949,3481.7,3481.3,2.87247]
[1718403214128,0.64119949,3481.7,3481.4,2.87239]
[1718403214428,0.04060304,3481.7,3481.0,4.30610514]
[1718403214628,0.04060304,3481.7,3481.4,2.87233]
[1718403214924,0.60059645,3481.8,3481.4,2.87233]
[1718403215127,0.04058728,3481.6,3481.5,2.87232]
[1718403215330,0.60059645,3481.8,3481.5,2.87232]
[1718403215505,0.60059645,3481.9,3481.6,2.87224]
[1718403215703,0.0405877,3481.8,3481.7,2.87216]
[1718403216026,0.60059645,3482.0,3481.7,2.87216]
[1718403216228,0.04072857,3481.8,3481.7,2.87216]
[1718403216394,0.60059645,3482.0,3481.7,2.87216]
[1718403216589,0.04072857,3481.8,3481.7,2.87216]
[1718403216794,0.60059645,3482.0,3481.8,2.87204]
[1718403217224,0.60059645,3482.1,3481.8,2.87204]
[1718403217429,1.49657682,3482.0,3481.8,2.87204]
[1718403217728,0.60059645,3482.1,3481.8,2.87204]
[1718403218237,0.60059645,3482.2,3482.0,2.87191]
[1718403218445,0.60059645,3482.3,3482.1,2.87182]
[1718403219739,1.19737241,3482.6,3482.1,2.87182]
[1718403219740,0.60059645,3482.4,3482.1,2.87182]
[1718403220044,1.49645435,3482.3,3482.1,2.87182]
[1718403220206,0.60059645,3482.4,3482.1,2.87182]
[1718403220530,2.09706428,3482.3,3482.1,2.87182]
[1718403220713,0.60059645,3482.3,3482.1,2.87182]
[1718403221145,0.60059645,3482.4,3482.2,2.87174]
[1718403221545,1.49643718,3482.3,3482.2,2.87174]
[1718403222804,0.60059645,3482.4,3482.2,2.87174]
[1718403223194,1.49644249,3482.3,3482.2,2.87174]
[1718403223510,2.09703894,3482.3,3482.2,2.87174]
[1718403223895,1.49644249,3482.3,3482.2,2.87174]
[1718403224138,0.60059645,3482.4,3482.2,2.87174]
[1718403224700,0.60059645,3482.5,3482.2,2.87174]
[1718403225005,1.49641602,3482.4,3482.2,2.87174]
[1718403225210,0.60059645,3482.4,3482.2,2.87174]
[1718403225420,0.60059645,3482.4,3482.3,5.74332]
[1718403225732,0.60059645,3482.4,3482.2,2.87174]
[1718403225733,0.60059645,3482.6,3482.5,2.8715]
[1718403225937,2.09695909,3482.6,3482.5,2.8715]
[1718403226977,1.19737241,3482.9,3482.5,0.574734]
[1718403226978,0.60059645,3482.7,3482.5,0.574734]
[1718403227096,0.60059645,3482.9,3482.6,2.87141]
[1718403227411,0.60059645,3483.0,3482.2,1.617]
[1718403227600,0.60059645,3483.0,3482.8,2.87125]
[1718403227601,1.49619302,3482.9,3482.8,2.87125]
[1718403227796,0.60059645,3483.1,3482.9,2.87117]
[1718403227992,1.49616675,3483.0,3482.9,5.74234]
[1718403228210,0.60059645,3483.1,3483.0,2.87108]
[1718403228406,2.09675912,3483.1,3483.0,2.87108]
[1718403228611,1.49616267,3483.1,3483.0,5.74216]
[1718403228808,0.60059645,3483.2,3483.1,2.871]
[1718403229038,0.89835556,3483.4,3483.2,2.87092]
[1718403229039,0.60059645,3483.3,3483.2,2.87092]
[1718403229223,0.60059645,3483.4,3483.3,2.87084]
[1718403229398,0.60059645,3483.7,3483.5,2.87067]
[1718403229735,0.60059645,3483.7,3483.6,2.87059]
[1718403230042,1.49590254,3483.7,3483.6,2.87059]
[1718403230335,0.60059645,3483.8,3483.6,2.87059]
[1718403230635,1.19737241,3484.1,3483.6,2.87059]
[1718403230636,0.60059645,3484.1,3483.8,2.87042]
[1718403230834,0.60059645,3484.3,3484.1,2.82018]
[1718403231042,0.60059645,3484.5,3484.2,2.87003]
[1718403231347,2.09620969,3484.6,3484.2,2.87003]
[1718403231637,0.29945652,3484.5,3484.0,2.87025]
[1718403232226,0.90005297,3484.5,3484.0,2.87025]
[1718403232519,0.29945652,3484.5,3484.0,2.87025]
[1718403232738,1.86831278,3484.9,3484.0,2.87025]
[1718403232739,0.60059645,3484.7,3484.0,2.87025]
[1718403232923,2.09618672,3484.8,3484.0,2.87025]
[1718403233126,1.49559027,3484.7,3484.1,2.87016]
[1718403233439,0.60059645,3484.8,3484.1,2.87016]
[1718403233638,4.06673241,3485.1,3484.1,2.87016]
[1718403233639,2.09618495,3484.9,3484.1,2.87016]
[1718403233801,2.08197855,3484.8,3484.1,2.87016]
[1718403234003,0.58639005,3484.8,3484.1,2.87016]
[1718403235403,0.58639005,3484.8,3483.7,2.87045]
[1718403235626,0.58639005,3484.8,3483.9,2.87032]
[1718403236407,0.58639005,3484.8,3484.0,2.87026]
[1718403236902,0.58639005,3484.8,3483.9,2.87032]
[1718403237210,0.69259565,3484.7,3484.0,2.87024]
[1718403237426,2.86953,3484.9,3484.0,2.87024]
[1718403237629,2.86945,3485.0,3484.0,2.87024]
[1718403242141,0.60059645,3485.2,3484.1,11.35904514]
[1718403242446,0.60059645,3486.0,3484.8,2.86958]
[1718403242658,2.86928,3485.2,3484.2,1.42293751]
[1718403242807,2.86911,3485.4,3484.1,9.9256]
[1718403242808,2.86943,3485.1,3484.1,9.9256]
[1718403243151,0.286943,3485.0,3484.1,9.9256]
[1718403243438,0.0374885,3485.0,3484.3,2.86999]
[1718403243741,2.86919,3485.3,3484.3,2.86999]
[1718403243941,2.86937,3485.1,3484.1,12.79576]
[1718403244145,2.86949,3485.0,3484.1,3.0]
[1718403244317,0.03749214,3485.0,3484.1,5.87011]
[1718403244517,0.29068621,3484.9,3483.8,2.87038]
[1718403244838,0.03747793,3484.8,3483.8,2.87038]
[1718403245055,0.03747793,3484.8,3483.9,3.05739852]
[1718403245612,0.03747793,3484.8,3483.9,5.92765852]
[1718403245819,0.03747793,3484.8,3484.0,2.87025]
[1718403246036,0.35724134,3484.8,3484.0,2.87025]
[1718403246712,0.35724134,3484.8,3483.9,3.0]
[1718403246906,2.8697,3484.7,3483.9,3.0]
[1718403247111,0.03746372,3484.6,3483.9,3.0]
[1718403247331,2.90723372,3484.6,3483.5,5.87066]
[1718403247538,0.03746372,3484.6,3483.6,2.87058]
[1718403248655,2.90725372,3484.6,3483.7,2.8705]
[1718403248855,0.57768637,3484.5,3483.7,2.8705]
[1718403249328,0.03653377,3484.4,3484.3,2.87001]
[1718403249655,2.86925,3485.3,3484.3,2.87001]
[1718403249945,2.86925,3485.3,3484.1,2.87016]
[1718403249946,0.03634265,3485.2,3484.2,2.87007]
[1718403250141,3.61726609,3485.2,3484.2,2.87007]
[1718403250727,3.61726609,3485.2,3484.3,0.05739157]
[1718403251137,3.61726609,3485.2,3484.2,2.87007]
[1718403252333,7.5623,3485.1,3483.8,6.9256]
[1718403252536,2.54368304,3485.0,3483.9,3.0]
[1718403252738,3.03977281,3485.0,3483.9,3.0]
[1718403252944,3.03977281,3485.0,3484.2,2.87009]
[1718403252945,0.53121333,3485.0,3484.2,2.87009]
[1718403253115,0.03512356,3485.0,3484.3,0.05739138]
[1718403253315,0.71165344,3485.2,3484.3,0.05739138]
[1718403253541,0.03524226,3485.1,3484.3,0.05739138]
[1718403254050,0.03524226,3485.1,3484.3,2.92740138]
[1718403255331,1.41322826,3485.1,3484.3,2.92740138]
[1718403255527,1.41322826,3485.1,3484.6,2.86976]
[1718403255727,1.41322826,3485.1,3484.7,0.05738653]
[1718403255728,0.03524226,3485.1,3484.7,0.05738653]
[1718403255930,1.377986,3485.4,3484.7,2.92704653]
[1718403256154,0.03539785,3485.3,3484.8,0.05738488]
[1718403256450,1.87406096,3485.4,3484.8,0.05738488]
[1718403256628,0.03539323,3485.2,3484.8,0.05738488]